[Event "DEN-ch KK 2020"]
[Site "Svendborg"]
[Date "2020.10.13"]
[Round "2.11"]
[White "Guindy, Esmat Susanne"]
[Black "Hald Falkesgaard, Jeppe"]
[Result "1-0"]
[ECO "E63"]
[WhiteElo "2131"]
[BlackElo "1984"]
[Annotator "NA"]
[PlyCount "129"]
[EventDate "2020.10.09"]
[EventType "tourn"]
[EventCountry "DEN"]
[SourceTitle "playchess.com"]
[Source "ChessBase"]
[SourceQuality "1"]
[TimeControl "40/5400+30:1800+30"]

1. d4 {[%emt 0:00:00]} Nf6 {[%emt 0:00:00]} 2. c4 {[%emt 0:00:08]} g6 {[%emt 0:00:00]} 3. g3 {[%emt 0:00:12]} Bg7 {[%emt 0:00:00]} 4. Bg2 {[%emt 0:00:07]} O-O {[%emt 0:00:09]} 5. Nf3 {[%emt 0:00:12]} d6 {[%emt 0:00:14]} 6. Nc3 {[%emt 0:00:33]} Nc6 {[%emt 0:00:10]} 7. O-O {[%emt 0:02:15]} a6 {[%emt 0:00:09]} 8. b3 {[%emt 0:05:52] now scores much better than the old 8.h3.} Bg4 {[%emt 0:04:27]} 9. h3 {[%emt 0:06:10] E63: King's Indian: Fianchetto: Panno Variation with 7...a6.} Bxf3 {[%emt 0:00:11]} 10. Bxf3 {[%emt 0:00:09]} Nd7 {[%emt 0:00:51]} 11. e3 {[%emt 0:04:41]} e5 {[%emt 0:03:31]} 12. Ne2 {[%emt 0:03:38] [#]} Qf6 $146 {[%emt 0:09:57]} ({Predecessor:} 12... f5 13. dxe5 dxe5 14. Bd5+ Kh8 15. Ba3 Rf6 16. f4 e4 17. Bb2 Rd6 18. Ba3 Rf6 19. Bxc6 Rxc6 {1-0 (50) Balje,J (2198)-Zojer,S (2089) Groningen 2013}) 13. Bg2 {[%emt 0:04:56]} Qe7 {[%emt 0:11:09]} 14. Bb2 {[%emt 0:01:02]} Rae8 {[%emt 0:05:04]} 15. dxe5 {[%emt 0:10:34]} Ncxe5 {[%emt 0:03:56]} 16. Qd2 {[%emt 0:04:19]} ({Much worse is} 16. Bxb7 c6 $15) 16... Nc5 {[%emt 0:06:14]} 17. Rad1 {[%emt 0:05:39]} Qf6 {[%emt 0:06:50]} 18. Kh1 {[%emt 0:06:49]} Qf5 {[%emt 0:09:28]} 19. Nd4 {[%emt 0:04:29]} Qh5 {[%emt 0:00:24]} 20. Qe2 {[%emt 0:04:56]} Qxe2 {[%emt 0:01:31]} 21. Nxe2 {[%emt 0:00:06]} Nc6 {[%emt 0:06:08]} (21... Ned3 $11 {keeps the balance.} 22. Ba3 a5) 22. Bxg7 {[%emt 0:03:48]} Kxg7 {[%emt 0:00:08]} 23. Nf4 {[%emt 0:00:31]} Nb4 {[%emt 0:02:16]} 24. a3 {[%emt 0:02:53]} Nc2 {[%emt 0:00:24] [#]} 25. b4 {[%emt 0:01:31]} (25. Rd2 $1 $16 {[%cal Rd2c2]} Nxe3 26. fxe3) 25... Ne6 {[%emt 0:02:41]} 26. Nxe6+ {[%emt 0:00:58]} fxe6 {[%emt 0:01:57]} 27. Rd3 {[%emt 0:00:17]} a5 {[%emt 0:05:50]} 28. bxa5 {[%emt 0:02:07]} Ra8 {[%emt 0:00:12]} 29. Rc3 {[%emt 0:00:35]} Rxa5 {[%emt 0:00:06]} 30. Rxc2 {[%emt 0:00:08]} Rxa3 {[%emt 0:00:05]} 31. Bxb7 {[%emt 0:02:28]} Rxe3 {[%emt 0:00:12]} 32. Kg2 {[%emt 0:00:53]} ({Don't do} 32. fxe3 Rxf1+ 33. Kg2 Rb1 $18) 32... Rb3 {[%emt 0:00:10]} 33. Be4 {[%emt 0:01:06]} Rb4 {[%emt 0:00:06]} 34. Re1 {[%emt 0:00:44]} Kf6 {[%emt 0:00:25]} 35. Re3 {[%emt 0:00:56]} Ke7 {[%emt 0:00:08]} 36. c5 {[%emt 0:00:52]} Kf6 {[%emt 0:01:00]} 37. cxd6 {[%emt 0:01:50]} cxd6 {[%emt 0:00:08]} 38. Rf3+ {[%emt 0:01:21]} Kg7 {[%emt 0:00:06]} 39. Rc7+ {[%emt 0:01:04]} Kg8 {[%emt 0:00:06]} 40. Rxf8+ {[%emt 0:00:46]} Kxf8 {[%emt 0:00:09]} 41. Bf3 {[%emt 0:31:18]} Kg8 {[%emt 0:30:15]} 42. Bg4 {[%emt 0:00:16]} e5 {[%emt 0:00:06]} 43. Be6+ {[%emt 0:00:53]} Kh8 {[%emt 0:00:06]} 44. Rd7 {[%emt 0:01:30]} Rd4 {[%emt 0:00:13]} 45. Kf3 {[%emt 0:01:19]} Rd3+ {[%emt 0:00:22]} 46. Ke2 {[%emt 0:00:38]} Rd4 {[%emt 0:00:09]} 47. h4 {[%emt 0:02:36]} Re4+ $18 {[%emt 0:01:18]} 48. Kd3 {[%emt 0:01:27]} Rd4+ {[%emt 0:00:07]} 49. Ke3 {[%emt 0:00:16]} Rd1 {[%emt 0:00:18]} 50. Ke2 {[%emt 0:00:32]} Rd4 {[%emt 0:00:15]} 51. f3 {[%emt 0:00:09]} h6 {[%emt 0:00:22]} 52. g4 {[%emt 0:01:52]} g5 {[%emt 0:00:26]} 53. h5 {[%emt 0:01:06]} e4 {[%emt 0:01:13]} 54. Ke3 {[%emt 0:00:58]} Ra4 {[%emt 0:00:09]} 55. Rxd6 {[%emt 0:01:11]} exf3 {[%emt 0:00:15]} 56. Bf5 {[%emt 0:00:40]} Ra3+ {[%emt 0:00:29]} 57. Kf2 {[%emt 0:00:09]} Kg7 {[%emt 0:00:24]} 58. Rg6+ {[%emt 0:00:21]} Kf8 {[%emt 0:00:48]} 59. Rxh6 {[%emt 0:00:13]} Kg7 {[%emt 0:00:20]} 60. Rg6+ {[%emt 0:00:10]} Kh8 {[%emt 0:00:09]} 61. h6 {[%emt 0:02:37]} Ra2+ {[%emt 0:00:46]} 62. Kxf3 {[%emt 0:00:57]} Rh2 {[%emt 0:01:26]} 63. Rc6 {[%emt 0:00:53]} Kg8 {[%emt 0:00:28]} 64. h7+ {[%emt 0:00:48]} Kg7 {[%emt 0:00:21]} 65. Rc8 {[%emt 0:00:23]} 1-0

[Event "DEN-ch KK 2020"]
[Site "Svendborg"]
[Date "2020.10.13"]
[Round "2.12"]
[White "Meskenas, Paulius"]
[Black "Steffensen, Elena"]
[Result "1-0"]
[ECO "B06"]
[WhiteElo "2032"]
[BlackElo "2081"]
[Annotator "ChessBase"]
[PlyCount "69"]
[EventDate "2020.10.09"]
[EventType "tourn"]
[EventCountry "DEN"]
[SourceTitle "playchess.com"]
[Source "ChessBase"]
[SourceQuality "1"]
[TimeControl "40/5400+30:1800+30"]

1. e4 {[%emt 0:00:00]} g6 {[%emt 0:00:00]} 2. d4 {[%emt 0:00:00]} Bg7 {[%emt 0:00:00]} 3. Nc3 {[%emt 0:00:00]} c6 {[%emt 0:00:00]} 4. Be3 {[%emt 0:00:00]} Nf6 {[%emt 0:07:21]} 5. Nf3 {[%emt 0:01:15]} d5 {[%emt 0:04:01]} 6. e5 {[%emt 0:03:22]} Ng4 {[%emt 0:06:03]} 7. Bf4 {[%emt 0:01:56]} h5 {[%emt 0:00:37]} 8. Bd3 {[%emt 0:05:09]} Nh6 {[%emt 0:07:08]} 9. Qe2 {[%emt 0:06:35]} Nf5 {[%emt 0:11:31]} 10. O-O-O {[%emt 0:01:17]} b5 {[%emt 0:03:54]} 11. h3 {[%emt 0:01:26]} b4 {[%emt 0:01:31]} 12. Na4 {[%emt 0:00:41]} Qa5 {[%emt 0:04:52]} 13. b3 {[%emt 0:05:57]} h4 {[%emt 0:00:39]} 14. g4 {[%emt 0:01:17]} hxg3 {[%emt 0:00:21]} 15. fxg3 {[%emt 0:00:01]} e6 {[%emt 0:00:49]} 16. g4 {[%emt 0:01:12]} Ne7 {[%emt 0:01:05]} 17. Bd2 {[%emt 0:00:45]} Na6 {[%emt 0:08:51]} 18. Kb1 {[%emt 0:01:30]} c5 {[%emt 0:03:16]} 19. Bb5+ {[%emt 0:00:25]} Kf8 {[%emt 0:01:29]} 20. dxc5 {[%emt 0:01:34]} Rb8 {[%emt 0:00:49]} 21. Nd4 {[%emt 0:00:38]} Nc7 {[%emt 0:02:48]} 22. Bd3 {[%emt 0:10:29]} Bd7 {[%emt 0:00:35]} 23. Nb2 {[%emt 0:02:37]} Qxc5 {[%emt 0:01:05]} 24. Be3 {[%emt 0:03:09]} Qa5 {[%emt 0:01:04]} 25. Rdf1 {[%emt 0:00:50]} Ke8 {[%emt 0:04:22]} 26. Bd2 {[%emt 0:08:28]} Qc5 {[%emt 0:04:48]} 27. Qf2 {[%emt 0:01:06]} Bxe5 {[%emt 0:05:24]} 28. Be3 {[%emt 0:01:40]} Rf8 {[%emt 0:02:02]} 29. Nxe6 {[%emt 0:05:17]} Qc3 {[%emt 0:00:13]} 30. Bd4 {[%emt 0:01:08]} Bxd4 {[%emt 0:00:38]} 31. Nxd4 {[%emt 0:00:17]} Nb5 {[%emt 0:03:43]} 32. Nxb5 {[%emt 0:01:38]} Bxb5 {[%emt 0:00:14]} 33. Qxa7 {[%emt 0:00:26]} Nc6 {[%emt 0:01:40]} 34. Qc7 {[%emt 0:00:38]} Bxd3 {[%emt 0:00:52]} 35. Nxd3 {[%emt 0:00:10]} 1-0

[Event "DEN-ch KK 2020"]
[Site "Svendborg"]
[Date "2020.10.14"]
[Round "3.9"]
[White "Easwaralingam, Adesh"]
[Black "Thorsbro, Peter"]
[Result "0-1"]
[ECO "C65"]
[WhiteElo "2110"]
[BlackElo "2165"]
[Annotator "NA RC"]
[PlyCount "126"]
[EventDate "2020.10.09"]
[EventType "tourn"]
[EventCountry "DEN"]
[SourceTitle "playchess.com"]
[Source "ChessBase"]
[SourceQuality "1"]
[TimeControl "40/5400+30:1800+30"]

1. e4 {[%emt 0:00:00]} e5 {[%emt 0:00:00]} 2. Nf3 {[%emt 0:00:00]} Nc6 {[%emt 0:00:00]} 3. Bb5 {[%emt 0:00:07]} Nf6 {[%emt 0:00:22]} 4. d3 {[%emt 0:00:09]} Bc5 {[%emt 0:00:21]} 5. O-O {[%emt 0:00:52]} d6 {[%emt 0:00:39]} 6. c3 {[%emt 0:00:35]} O-O {[%emt 0:00:35]} 7. h3 {[%emt 0:01:58]} h6 {[%emt 0:06:21]} 8. Nbd2 {[%emt 0:04:39]} a6 {[%emt 0:06:47]} 9. Ba4 {[%emt 0:03:19]} Ba7 {[%emt 0:01:20]} 10. Bb3 {[%emt 0:02:51]} Re8 {[%emt 0:01:05]} 11. Re1 {[%emt 0:00:52]} Be6 {[%emt 0:00:31]} 12. Nf1 {[%emt 0:01:51]} d5 {[%emt 0:04:16]} 13. Ng3 {[%emt 0:06:22]} dxe4 {[%emt 0:02:51]} 14. dxe4 {[%emt 0:05:06]} Qxd1 {[%emt 0:00:37]} 15. Bxd1 {[%emt 0:03:10]} Rad8 {[%emt 0:02:57]} 16. Bc2 {[%emt 0:01:27]} Bc5 $11 {[%emt 0:17:29]} 17. Be3 {[%emt 0:02:27]} Bxe3 {[%emt 0:04:53]} 18. Rxe3 {[%emt 0:01:40]} Nd7 {[%emt 0:00:51]} 19. Ne1 {[%emt 0:16:19]} Nb6 {[%emt 0:18:42]} 20. Nd3 {[%emt 0:02:41]} Nc4 {[%emt 0:00:03]} 21. Re2 {[%emt 0:00:25]} b6 {[%emt 0:00:33]} 22. Rd1 {[%emt 0:15:16]} Re7 {[%emt 0:03:44]} 23. Nb4 {[%emt 0:03:47]} Rxd1+ {[%emt 0:00:35]} 24. Bxd1 {[%emt 0:00:09]} Nxb4 {[%emt 0:02:42]} 25. cxb4 {[%emt 0:00:06]} Nd6 {[%emt 0:08:25]} 26. b3 {[%emt 0:09:49]} Nb5 {[%emt 0:00:29]} 27. Rd2 {[%emt 0:00:07]} Rd7 {[%emt 0:00:56]} 28. Rxd7 {[%emt 0:00:58]} Bxd7 {[%emt 0:00:02]} 29. Ne2 {[%emt 0:00:33]} Nd4 {[%emt 0:08:02]} 30. Nxd4 {[%emt 0:01:48]} exd4 {[%emt 0:00:02]} 31. Be2 {[%emt 0:01:02]} a5 {[%emt 0:00:54]} 32. bxa5 {[%emt 0:01:57]} bxa5 {[%emt 0:00:02]} 33. Bc4 {[%emt 0:01:29]} Kf8 {[%emt 0:04:25]} 34. Kf1 {[%emt 0:00:54]} f5 {[%emt 0:00:48]} 35. exf5 {[%emt 0:05:32]} Bxf5 {[%emt 0:00:02]} 36. Ke2 {[%emt 0:00:13]} Ke7 {[%emt 0:00:37]} 37. f4 {[%emt 0:04:20]} Kd6 {[%emt 0:01:25]} 38. a3 {[%emt 0:00:46]} Kc5 {[%emt 0:02:09]} 39. Bf7 {[%emt 0:01:50]} Be4 {[%emt 0:00:52]} 40. g4 {[%emt 0:01:02]} g5 {[%emt 0:01:13]} 41. f5 {[%emt 0:19:10]} Kd6 {[%emt 0:01:21]} 42. Kf2 {[%emt 0:09:54]} c5 {[%emt 0:00:38]} 43. Bc4 {[%emt 0:00:10]} Ke5 {[%emt 0:00:12]} 44. Bf7 {[%emt 0:01:12]} Bb1 {[%emt 0:00:25]} 45. Kf3 {[%emt 0:01:06]} Ba2 {[%emt 0:00:38]} 46. a4 {[%emt 0:00:07]} Bb1 {[%emt 0:00:32]} 47. Bc4 {[%emt 0:00:29]} Be4+ {[%emt 0:01:33]} 48. Kf2 {[%emt 0:00:07]} Kf6 {[%emt 0:03:49]} 49. Kg3 {[%emt 0:01:40]} h5 {[%emt 0:03:35]} 50. Kf2 {[%emt 0:00:24]} h4 {[%emt 0:03:56]} 51. Bf1 {[%emt 0:01:30]} Ke5 {[%emt 0:00:22]} 52. Ke1 {[%emt 0:00:59]} d3 {[%emt 0:10:58]} 53. Kd2 {[%emt 0:00:05]} Bd5 {[%emt 0:00:01]} 54. Bxd3 {[%emt 0:00:40]} Bxb3 {[%emt 0:00:02]} 55. Bb5 {[%emt 0:00:09]} Bd5 {[%emt 0:01:01]} 56. Ke3 {[%emt 0:00:49]} Bg2 {[%emt 0:00:10]} 57. Kf2 {[%emt 0:00:20]} Bd5 {[%emt 0:01:25]} 58. Ke3 {[%emt 0:00:15]} c4 {[%emt 0:01:44]} 59. Kf2 {[%emt 0:00:54]} c3 {[%emt 0:00:37]} 60. Ke3 {[%emt 0:00:44]} Bg2 {[%emt 0:00:57]} 61. Kd3 {[%emt 0:00:25]} Bxh3 {[%emt 0:00:19]} 62. Bd7 {[%emt 0:00:08]} Bg2 {[%emt 0:00:30]} 63. Kxc3 {[%emt 0:00:04]} h3 {[%emt 0:00:09]} 0-1

[Event "DEN-ch KK 2020"]
[Site "Svendborg"]
[Date "2020.10.14"]
[Round "3.10"]
[White "Kistrup, Nicolai"]
[Black "Rossen, Claus"]
[Result "1/2-1/2"]
[ECO "A42"]
[WhiteElo "2128"]
[BlackElo "2099"]
[Annotator "NA RC"]
[PlyCount "84"]
[EventDate "2020.10.09"]
[EventType "tourn"]
[EventCountry "DEN"]
[SourceTitle "playchess.com"]
[Source "ChessBase"]
[SourceQuality "1"]
[TimeControl "40/5400+30:1800+30"]

1. d4 {[%emt 0:00:00]} g6 {[%emt 0:00:00]} 2. c4 {[%emt 0:00:00]} Bg7 {[%emt 0:00:00]} 3. Nc3 {[%emt 0:03:12]} d6 {[%emt 0:00:00]} 4. e4 {[%emt 0:05:27]} Nc6 {[%emt 0:01:09]} 5. Be3 {[%emt 0:13:01]} e5 {[%emt 0:00:22]} 6. Nge2 {[%emt 0:10:49]} f5 {[%emt 0:03:57]} 7. dxe5 {[%emt 0:11:06]} dxe5 {[%emt 0:05:06]} 8. exf5 {[%emt 0:08:24]} gxf5 {[%emt 0:03:23]} 9. Qxd8+ {[%emt 0:03:20]} Nxd8 {[%emt 0:01:09]} 10. f4 {[%emt 0:06:00]} Ne6 {[%emt 0:05:28]} 11. fxe5 {[%emt 0:09:34]} Bxe5 {[%emt 0:00:25]} 12. g3 {[%emt 0:02:07]} Nf6 {[%emt 0:03:12]} 13. Bg2 $11 {[%emt 0:04:00]} c6 {[%emt 0:15:01]} 14. Rf1 {[%emt 0:06:21]} Ng4 {[%emt 0:10:08]} 15. Bg1 {[%emt 0:00:26]} Ng5 {[%emt 0:00:12]} 16. h3 {[%emt 0:03:39]} Nf6 {[%emt 0:00:16]} 17. Bd4 {[%emt 0:00:42]} Bxd4 {[%emt 0:11:07]} 18. Nxd4 {[%emt 0:00:07]} O-O {[%emt 0:00:03]} 19. O-O-O {[%emt 0:03:34]} Nfe4 {[%emt 0:05:30]} 20. Nxe4 {[%emt 0:02:20]} Nxe4 {[%emt 0:00:35]} 21. Bxe4 {[%emt 0:01:54]} fxe4 {[%emt 0:00:07]} 22. Rxf8+ {[%emt 0:00:24]} Kxf8 {[%emt 0:00:05]} 23. g4 {[%emt 0:01:04]} Bd7 {[%emt 0:01:30]} 24. Kd2 {[%emt 0:03:17]} c5 {[%emt 0:04:11]} 25. Nf5 {[%emt 0:00:17]} Bxf5 {[%emt 0:02:39]} 26. Rf1 {[%emt 0:00:21]} Rd8+ {[%emt 0:00:05]} 27. Ke2 {[%emt 0:00:17]} Rd3 {[%emt 0:01:10]} 28. Rxf5+ {[%emt 0:00:07]} Kg7 {[%emt 0:02:40]} 29. Rxc5 {[%emt 0:00:38]} Rxh3 {[%emt 0:00:22]} 30. Rc7+ {[%emt 0:00:37]} Kf6 {[%emt 0:01:17]} 31. Rxb7 {[%emt 0:00:14]} Ke5 {[%emt 0:00:17]} 32. Rxa7 {[%emt 0:02:07]} Kd4 {[%emt 0:09:58]} 33. Rd7+ {[%emt 0:00:10]} Kxc4 {[%emt 0:00:05]} 34. a4 {[%emt 0:00:30]} h5 {[%emt 0:10:11]} 35. gxh5 {[%emt 0:00:42]} Rxh5 {[%emt 0:00:04]} 36. Ke3 {[%emt 0:00:32]} Kb3 {[%emt 0:01:46]} 37. Rb7+ {[%emt 0:00:36]} Kxa4 {[%emt 0:00:08]} 38. Kxe4 {[%emt 0:00:08]} Rb5 {[%emt 0:00:15]} 39. Rd7 {[%emt 0:00:52]} Rxb2 {[%emt 0:00:08]} 40. Ra7+ {[%emt 0:00:18]} Kb3 {[%emt 0:00:04]} 41. Rb7+ {[%emt 0:30:04]} Kc3 {[%emt 0:30:04]} 42. Rxb2 {[%emt 0:00:14]} Kxb2 {[%emt 0:00:04]} 1/2-1/2

[Event "DEN-ch KK 2020"]
[Site "Svendborg"]
[Date "2020.10.15"]
[Round "4.4"]
[White "Haubro, Sigfred"]
[Black "Kakulidis, Ellen"]
[Result "1-0"]
[ECO "D04"]
[WhiteElo "2163"]
[BlackElo "2073"]
[Annotator "ChessBase"]
[PlyCount "161"]
[EventDate "2020.10.09"]
[EventType "tourn"]
[EventCountry "DEN"]
[SourceTitle "playchess.com"]
[Source "ChessBase"]
[SourceQuality "1"]
[TimeControl "40/5400+30:1800+30"]

1. Nf3 {[%emt 0:00:00]} d5 2. d4 {[%emt 0:00:00]} Nf6 {[%emt 0:00:00]} 3. e3 {[%emt 0:00:06]} c5 {[%emt 0:00:04]} 4. b3 {[%emt 0:00:32]} Nbd7 {[%emt 0:00:26]} 5. Bd3 {[%emt 0:01:21]} g6 {[%emt 0:00:18]} 6. O-O {[%emt 0:00:29]} Bg7 {[%emt 0:00:08]} 7. Bb2 {[%emt 0:01:46]} O-O {[%emt 0:00:25]} 8. Nbd2 {[%emt 0:00:50]} b6 {[%emt 0:01:29]} 9. c4 {[%emt 0:03:28]} Bb7 {[%emt 0:03:40]} 10. Rc1 {[%emt 0:01:53]} Rc8 {[%emt 0:04:14]} 11. Qe2 {[%emt 0:04:42]} cxd4 {[%emt 0:10:22]} 12. exd4 {[%emt 0:04:38]} e6 {[%emt 0:00:38]} 13. Rcd1 {[%emt 0:06:09]} Qc7 {[%emt 0:09:17]} 14. Ne5 {[%emt 0:07:26]} dxc4 {[%emt 0:05:27]} 15. bxc4 {[%emt 0:00:58]} Nxe5 {[%emt 0:01:24]} 16. dxe5 {[%emt 0:00:09]} Nd7 {[%emt 0:00:51]} 17. f4 {[%emt 0:05:34]} Nc5 {[%emt 0:02:32]} 18. Bc2 {[%emt 0:05:06]} Rfd8 {[%emt 0:03:47]} 19. Rc1 {[%emt 0:12:18]} Rd7 {[%emt 0:05:45]} 20. Nf3 {[%emt 0:07:12]} Rcd8 {[%emt 0:09:15]} 21. Rfd1 {[%emt 0:05:33]} Bh6 {[%emt 0:01:16]} 22. Ng5 {[%emt 0:06:29]} Qc6 {[%emt 0:02:38]} 23. Rxd7 {[%emt 0:01:15]} Rxd7 {[%emt 0:00:20]} 24. Ba3 {[%emt 0:05:54]} Rd4 {[%emt 0:11:30]} 25. Rf1 {[%emt 0:02:50]} Ba6 {[%emt 0:03:26]} 26. Qf2 {[%emt 0:01:28]} Qd7 {[%emt 0:06:25]} 27. Bxc5 {[%emt 0:00:50]} bxc5 {[%emt 0:00:05]} 28. Ne4 {[%emt 0:00:13]} Rxe4 {[%emt 0:04:21]} 29. Bxe4 {[%emt 0:02:21]} Bxc4 {[%emt 0:00:18]} 30. Rc1 {[%emt 0:03:06]} Bd3 {[%emt 0:05:03]} 31. Bxd3 {[%emt 0:04:12]} Qxd3 {[%emt 0:00:06]} 32. g3 {[%emt 0:00:39]} Bf8 {[%emt 0:00:30]} 33. Qc2 {[%emt 0:00:20]} Qe3+ {[%emt 0:00:43]} 34. Kg2 {[%emt 0:00:06]} Qa3 {[%emt 0:02:27]} 35. Rd1 {[%emt 0:00:45]} Qa6 {[%emt 0:01:46]} 36. Rd8 {[%emt 0:01:49]} Kg7 {[%emt 0:01:20]} 37. h4 {[%emt 0:00:56]} Qc6+ {[%emt 0:00:15]} 38. Kh2 {[%emt 0:00:09]} c4 {[%emt 0:01:11]} 39. Qc3 {[%emt 0:01:47]} Qa4 {[%emt 0:01:42]} 40. Rd2 {[%emt 0:00:37]} Bb4 {[%emt 0:02:18]} 41. Qxc4 {[%emt 0:30:44]} Qa3 {[%emt 0:30:11]} 42. Rc2 {[%emt 0:03:03]} Be1 {[%emt 0:02:15]} 43. Qb3 {[%emt 0:00:00]} Qxb3 {[%emt 0:00:00]} 44. axb3 {[%emt 0:00:00]} a5 {[%emt 0:00:00]} 45. Kh3 {[%emt 0:00:00]} h6 {[%emt 0:00:00]} 46. Rc1 {[%emt 0:00:00]} Bd2 {[%emt 0:00:00]} 47. Rd1 {[%emt 0:00:00]} Bc3 {[%emt 0:00:00]} 48. Rd3 {[%emt 0:00:00]} Be1 {[%emt 0:00:00]} 49. Kg4 {[%emt 0:00:00]} h5+ {[%emt 0:00:00]} 50. Kf3 {[%emt 0:00:00]} Kf8 {[%emt 0:00:00]} 51. Rd1 {[%emt 0:00:00]} Bb4 {[%emt 0:00:00]} 52. Ke4 {[%emt 0:00:00]} Ke7 {[%emt 0:00:00]} 53. Rc1 {[%emt 0:00:00]} Kd7 {[%emt 0:00:00]} 54. Kf3 {[%emt 0:00:00]} Ba3 {[%emt 0:00:00]} 55. Rc2 {[%emt 0:00:00]} Bb4 {[%emt 0:00:00]} 56. Kg2 {[%emt 0:00:00]} Be1 {[%emt 0:00:00]} 57. Kh3 {[%emt 0:00:00]} Bb4 {[%emt 0:00:00]} 58. g4 {[%emt 0:00:00]} hxg4+ {[%emt 0:00:00]} 59. Kxg4 {[%emt 0:00:00]} Ke7 {[%emt 0:00:00]} 60. Kg5 {[%emt 0:00:00]} Kf8 {[%emt 0:00:00]} 61. h5 {[%emt 0:00:00]} gxh5 {[%emt 0:00:00]} 62. Kxh5 {[%emt 0:00:00]} Kg7 {[%emt 0:00:00]} 63. Kg4 {[%emt 0:00:00]} Kg6 {[%emt 0:00:00]} 64. Rc6 {[%emt 0:00:00]} Kg7 {[%emt 0:00:00]} 65. f5 {[%emt 0:00:00]} exf5+ {[%emt 0:00:00]} 66. Kxf5 {[%emt 0:00:00]} Be1 {[%emt 0:00:00]} 67. e6 {[%emt 0:00:00]} fxe6+ {[%emt 0:00:00]} 68. Kxe6 {[%emt 0:00:00]} Bb4 {[%emt 0:00:36]} 69. Rc7+ {[%emt 0:00:00]} Kg6 {[%emt 0:01:47]} 70. Rf7 {[%emt 0:00:00]} Bc3 {[%emt 0:00:47]} 71. Rf2 {[%emt 0:00:00]} Kg5 {[%emt 0:00:31]} 72. Kd5 {[%emt 0:00:00]} Be1 {[%emt 0:00:59]} 73. Rf1 {[%emt 0:00:00]} Bb4 {[%emt 0:00:37]} 74. Kc4 {[%emt 0:00:00]} Kg6 {[%emt 0:00:15]} 75. Kb5 {[%emt 0:00:00]} Kg5 {[%emt 0:03:42]} 76. Ra1 {[%emt 0:00:00]} Kf6 {[%emt 0:00:42]} 77. Rxa5 {[%emt 0:00:00]} Bxa5 {[%emt 0:00:09]} 78. Kxa5 {[%emt 0:00:00]} Ke6 {[%emt 0:02:47]} 79. Kb6 {[%emt 0:00:00]} Kd6 {[%emt 0:00:44]} 80. b4 {[%emt 0:00:02]} Kd7 {[%emt 0:00:17]} 81. Kb7 {[%emt 0:00:07]} 1-0

[Event "DEN-ch KK 2020"]
[Site "Svendborg"]
[Date "2020.10.15"]
[Round "4.8"]
[White "Guindy, Esmat Susanne"]
[Black "Kolbak, Jens"]
[Result "0-1"]
[ECO "A14"]
[WhiteElo "2131"]
[BlackElo "2114"]
[Annotator "NA"]
[PlyCount "78"]
[EventDate "2020.10.09"]
[EventType "tourn"]
[EventCountry "DEN"]
[SourceTitle "playchess.com"]
[Source "ChessBase"]
[SourceQuality "1"]
[TimeControl "40/5400+30:1800+30"]

1. Nf3 {[%emt 0:00:00]} Nf6 {[%emt 0:00:10]} 2. c4 {[%emt 0:00:03]} e6 {[%emt 0:01:19]} 3. g3 {[%emt 0:01:34]} d5 {[%emt 0:01:43]} 4. Bg2 {[%emt 0:00:53]} Be7 {[%emt 0:00:24]} 5. O-O {[%emt 0:00:57]} O-O {[%emt 0:00:09]} 6. d4 {[%emt 0:01:40]} c6 {[%emt 0:03:38]} 7. Qc2 {[%emt 0:01:23]} Ne4 {[%emt 0:08:20]} 8. Nc3 {[%emt 0:03:51]} f5 {[%emt 0:02:06]} 9. Ne5 {[%emt 0:03:40]} Nd7 {[%emt 0:00:58]} 10. Rd1 {[%emt 0:14:46]} Qe8 {[%emt 0:14:58]} 11. f3 {[%emt 0:06:51]} Nxc3 {[%emt 0:06:14]} 12. Qxc3 {[%emt 0:02:07]} Nxe5 {[%emt 0:01:25]} 13. dxe5 {[%emt 0:00:13]} b5 {[%emt 0:08:04]} 14. cxb5 {[%emt 0:01:32]} cxb5 {[%emt 0:00:07]} 15. Be3 {[%emt 0:02:32]} b4 {[%emt 0:05:25]} 16. Qd2 {[%emt 0:04:36]} Qb5 {[%emt 0:04:31]} 17. Rac1 {[%emt 0:02:56]} a5 {[%emt 0:03:22]} 18. Rc7 {[%emt 0:04:06]} Bd8 {[%emt 0:00:23]} 19. Rc5 {[%emt 0:01:02]} Qb8 {[%emt 0:00:20]} 20. Rdc1 {[%emt 0:03:17]} Bd7 {[%emt 0:03:14]} 21. f4 {[%emt 0:06:45]} Kh8 {[%emt 0:03:08]} 22. R5c2 {[%emt 0:09:13]} Bb6 {[%emt 0:07:01]} 23. Bxb6 {[%emt 0:01:52]} Qxb6+ {[%emt 0:00:07]} 24. e3 {[%emt 0:00:14]} b3 {[%emt 0:06:39]} 25. axb3 {[%emt 0:00:25]} Qxb3 {[%emt 0:00:06]} 26. Rc7 {[%emt 0:05:53]} Bb5 {[%emt 0:03:23]} 27. Rb7 {[%emt 0:05:29]} Rab8 {[%emt 0:02:28]} 28. Rcc7 {[%emt 0:02:06]} Rxb7 {[%emt 0:00:49]} 29. Rxb7 {[%emt 0:00:26]} Qc4 {[%emt 0:01:39]} 30. b3 {[%emt 0:03:01]} Qc6 {[%emt 0:01:00]} 31. Ra7 {[%emt 0:00:35]} Ra8 {[%emt 0:02:33]} 32. Rxa5 {[%emt 0:07:46]} Rxa5 {[%emt 0:00:23]} 33. Qxa5 {[%emt 0:00:07]} Qc1+ {[%emt 0:00:11]} 34. Kf2 {[%emt 0:00:06]} Qc2+ {[%emt 0:00:29]} 35. Kg1 {[%emt 0:01:05]} Qd1+ {[%emt 0:01:16]} 36. Kf2 {[%emt 0:00:09]} Qe2+ {[%emt 0:00:07]} 37. Kg1 {[%emt 0:00:11]} Qxe3+ {[%emt 0:00:11]} 38. Kh1 {[%emt 0:00:08]} Qc1+ {[%emt 0:00:07]} 39. Bf1 {[%emt 0:00:04]} Qxf1# {[%emt 0:00:07]} 0-1

[Event "DEN-ch KK 2020"]
[Site "Svendborg"]
[Date "2020.10.15"]
[Round "4.9"]
[White "Meskenas, Paulius"]
[Black "Kistrup, Nicolai"]
[Result "0-1"]
[ECO "A45"]
[WhiteElo "2032"]
[BlackElo "2128"]
[Annotator "NA"]
[PlyCount "38"]
[EventDate "2020.10.09"]
[EventType "tourn"]
[EventCountry "DEN"]
[SourceTitle "playchess.com"]
[Source "ChessBase"]
[SourceQuality "1"]
[TimeControl "40/5400+30:1800+30"]

1. d4 {[%emt 0:00:00]} Nf6 {[%emt 0:01:01]} 2. Bf4 {[%emt 0:00:00]} e6 {[%emt 0:06:07]} 3. Nc3 {[%emt 0:04:52]} Bb4 {[%emt 0:07:59]} 4. Qd3 {[%emt 0:05:39]} d5 {[%emt 0:07:47]} 5. f3 {[%emt 0:00:49]} O-O {[%emt 0:13:19]} 6. g4 {[%emt 0:01:29]} c5 {[%emt 0:03:59]} 7. e3 {[%emt 0:01:39]} Nc6 {[%emt 0:05:31]} 8. Nge2 {[%emt 0:03:36]} Re8 {[%emt 0:06:33]} 9. Kf2 {[%emt 0:09:26]} e5 {[%emt 0:04:51]} 10. dxe5 {[%emt 0:01:44]} Nxe5 {[%emt 0:00:50]} 11. Bxe5 {[%emt 0:00:02]} Rxe5 {[%emt 0:00:09]} 12. Rd1 {[%emt 0:01:11]} Bxg4 {[%emt 0:05:20]} 13. Ng3 {[%emt 0:00:55]} Qe7 {[%emt 0:12:23]} 14. Be2 {[%emt 0:01:00]} c4 {[%emt 0:04:37]} 15. Qd2 {[%emt 0:03:17]} Bc5 {[%emt 0:00:41]} 16. Nf1 {[%emt 0:00:14]} Bh3 {[%emt 0:02:09]} 17. Re1 {[%emt 0:00:12]} Re8 {[%emt 0:05:59]} 18. Nd1 {[%emt 0:00:46]} Nh5 {[%emt 0:02:44]} 19. Ng3 {[%emt 0:02:02]} Rxe3 {[%emt 0:00:43]} 0-1